bitfinex/quotes_ETHUSD_20250219
["timestamp","ask_amount","ask_price","bid_price","bid_amount"]
[1739952643849,7.34818,2721.8,2721.2,4.949113]
[1739952644042,3.67406,2721.8,2721.3,0.23192828]
[1739952644478,7.3482,2721.8,2721.3,0.23192828]
[1739952644682,3.67427,2721.7,2721.3,0.50510774]
[1739952644889,3.67405,2721.8,2721.3,1.05054181]
[1739952645409,3.67405,2721.8,2721.4,0.23192828]
[1739952645962,3.67422,2721.7,2721.4,0.23192828]
[1739952646770,3.67432,2721.6,2721.4,0.23192828]
[1739952646959,3.67432,2721.6,2721.2,0.8244]
[1739952648172,3.67432,2721.6,2721.3,0.23195921]
[1739952649398,3.67432,2721.6,2721.2,0.8244]
[1739952649698,0.8203,2721.6,2721.0,0.773]
[1739952649897,3.67438,2721.6,2721.1,0.56961084]
[1739952650560,3.67438,2721.6,2721.2,0.23200213]
[1739952650760,3.67446,2721.5,2721.2,0.23200213]
[1739952651085,7.34877,2721.6,2721.2,0.23200213]
[1739952651286,3.67438,2721.6,2721.3,0.7905]
[1739952651893,7.34877,2721.6,2721.3,0.7905]
[1739952652094,3.67438,2721.6,2721.3,0.7905]
[1739952653217,3.67447,2721.5,2721.3,0.7905]
[1739952653996,3.67438,2721.6,2721.3,0.7905]
[1739952654699,7.34878,2721.6,2721.3,0.7905]
[1739952654889,3.67438,2721.6,2721.3,0.7905]
[1739952655600,0.55,2721.9,2721.3,0.8905]
[1739952655794,3.67441,2721.6,2721.3,0.8905]
[1739952656540,7.34882,2721.6,2721.3,0.8905]
[1739952656667,3.6744,2721.6,2721.3,0.8905]
[1739952657213,3.67438,2721.6,2721.3,0.8905]
[1739952657573,0.03697571,2721.5,2721.3,0.8905]
[1739952657781,3.67457,2721.4,2721.3,0.1]
[1739952659579,3.71154571,2721.4,2721.3,0.1]
[1739952659807,6.13005115,2721.4,2721.3,0.1]
[1739952660323,12.67465115,2721.4,2721.3,0.1]
[1739952660621,15.68767544,2721.4,2721.3,0.1]
[1739952660821,18.10987345,2721.4,2721.3,0.1]
[1739952664893,0.827,2720.9,2720.3,0.72405156]
[1739952665237,3.67593,2720.4,2720.3,0.72405156]
[1739952665525,2.41850544,2720.4,2720.2,0.8144]
[1739952665841,7.35252,2720.2,2719.9,0.754]
[1739952666147,3.67622,2720.2,2719.9,0.754]
[1739952667315,6.09449544,2720.4,2719.9,0.754]
[1739952667830,3.67614,2720.3,2719.9,0.754]
[1739952668235,3.67622,2720.2,2719.9,0.754]
[1739952668819,0.03697571,2720.1,2719.9,0.754]
[1739952669020,3.67647,2720.0,2719.9,0.754]
[1739952669327,3.67665,2719.9,2719.5,0.7512]
[1739952669529,3.67647,2720.0,2719.5,0.7512]
[1739952669530,7.35304,2720.0,2719.5,0.7512]
[1739952669694,0.03697571,2719.9,2719.5,0.7512]
[1739952669891,3.71359571,2719.9,2719.5,0.7512]
[1739952670097,3.71373571,2719.8,2719.5,0.7512]
[1739952670995,7.39059571,2719.8,2719.5,0.7512]
[1739952671258,3.67689,2719.7,2719.5,0.7512]
[1739952671572,3.67655,2720.0,2719.5,0.7512]
[1739952671737,3.67655,2720.0,2719.5,4.42834]
[1739952672032,3.67661,2719.9,2719.5,0.7512]
[1739952672398,0.03697571,2719.8,2719.5,0.7512]
[1739952672605,3.67701,2719.6,2719.5,0.7512]
[1739952673167,3.67701,2719.6,2719.2,0.7699]
[1739952673312,3.67716,2719.5,2719.2,0.7699]
[1739952674116,3.67695,2719.7,2719.2,0.7699]
[1739952674814,7.35395,2719.7,2719.2,0.7699]
[1739952674997,3.67703,2719.6,2719.2,0.7699]
[1739952675413,3.67695,2719.7,2719.2,0.7699]
[1739952675414,3.71392571,2719.7,2719.2,0.7699]
[1739952675729,3.67705,2719.6,2719.2,0.7699]
[1739952676054,0.45090257,2719.7,2719.3,3.67741]
[1739952676224,11.29587544,2720.0,2719.4,4.45076]
[1739952676593,3.67663,2719.9,2719.4,0.7736]
[1739952676766,7.61930544,2720.0,2719.4,0.7736]
[1739952676966,5.2008,2720.0,2719.4,0.7736]
[1739952677115,8.8773,2720.0,2719.5,3.67701]
[1739952677315,3.67662,2719.9,2719.4,0.7736]
[1739952677558,8.8773,2720.0,2719.4,0.7736]
[1739952677768,3.6765,2720.0,2719.4,4.4508]
[1739952677930,7.35305,2720.0,2719.4,4.4508]
[1739952678129,3.6765,2720.0,2719.4,4.4508]
[1739952678338,7.35305,2720.0,2719.4,4.4508]
[1739952678556,3.6765,2720.0,2719.5,3.67713]
[1739952679126,7.3531,2720.0,2719.4,0.7736]
[1739952679333,3.67668,2719.9,2719.4,0.7736]
[1739952681157,3.67681,2719.8,2719.4,0.7736]
[1739952681836,7.35362,2719.8,2719.4,0.7736]
[1739952682057,3.67681,2719.8,2719.4,0.7736]
[1739952682356,3.67664,2719.9,2719.4,4.45087]
[1739952682558,3.67664,2719.9,2719.4,0.7736]
[1739952683164,0.03697571,2719.8,2719.4,0.7736]
[1739952683370,3.67696,2719.7,2719.4,0.7736]
[1739952683574,0.03697571,2719.6,2719.4,0.7736]
[1739952683867,3.71403571,2719.6,2719.4,0.7736]
[1739952684168,7.3544,2719.5,2719.0,0.8079]
[1739952684367,3.67714,2719.5,2719.0,0.8079]
[1739952684867,3.67768,2719.1,2719.0,0.8079]
[1739952685074,3.67782,2719.0,2718.9,0.05792239]
[1739952685587,3.71479571,2719.0,2718.9,0.05792239]
[1739952685724,3.67782,2719.0,2718.9,0.05792239]
[1739952685926,3.71479571,2719.0,2718.9,0.05792239]
[1739952686349,3.67782,2719.0,2718.9,0.05792239]
[1739952686832,2.41850544,2719.3,2718.9,0.05792239]
[1739952686833,9.77350544,2719.3,2718.9,0.05792239]
[1739952686979,6.09598544,2719.3,2718.9,0.05792239]
[1739952687181,7.61930544,2719.6,2719.1,3.6776]
[1739952687397,5.2008,2719.6,2719.2,0.7687]
[1739952687601,12.55494,2719.6,2719.2,0.7687]
[1739952687935,8.87782,2719.6,2719.2,0.7687]
[1739952688302,5.2008,2719.6,2719.2,0.7687]
[1739952688835,5.2008,2719.6,2719.3,3.67733]
[1739952689204,5.2008,2719.6,2719.2,4.44621]
[1739952689732,5.2008,2719.6,2719.2,0.7687]
[1739952690135,8.87789,2719.6,2719.2,0.7687]
[1739952690748,3.71413571,2719.5,2719.2,0.7687]
[1739952691500,5.2008,2719.6,2719.2,0.7687]
[1739952691705,5.2008,2719.6,2718.9,4.4768516]
[1739952691706,3.67751,2719.3,2719.0,0.7871]
[1739952691947,3.67741,2719.4,2719.0,0.7871]
[1739952693053,7.35523,2719.2,2719.0,0.7871]
[1739952693255,3.67758,2719.2,2719.0,0.7871]
[1739952694184,3.67744,2719.3,2719.0,0.7871]
[1739952694451,3.67732,2719.4,2719.0,0.7871]
[1739952694759,0.03697571,2719.3,2719.0,0.7871]
[1739952694957,7.35472,2719.4,2719.0,0.7871]
[1739952695123,3.67732,2719.4,2719.0,0.7871]
[1739952695746,8.43390544,2719.6,2719.0,0.7871]
[1739952695747,12.11098544,2719.6,2719.0,0.7871]
[1739952696062,3.67731,2719.4,2719.0,0.7871]
[1739952696243,3.67755,2719.2,2719.0,0.7871]
[1739952696617,7.35471,2719.4,2719.0,0.7871]
[1739952696959,3.67731,2719.4,2719.0,0.7871]
[1739952697411,3.67755,2719.2,2719.0,0.7871]
[1739952699012,0.37145257,2719.1,2718.9,0.05792239]
[1739952699258,3.67782,2719.0,2718.9,0.05792239]
[1739952699467,4.04914257,2719.1,2718.9,0.05792239]
[1739952700129,0.37145257,2719.1,2718.9,0.05792239]
[1739952700346,4.04916257,2719.1,2718.9,0.05792239]
[1739952700528,0.03697571,2719.0,2718.9,0.05792239]
[1739952700724,4.04916257,2719.1,2718.9,0.05792239]
[1739952701116,0.03697571,2719.0,2718.9,0.05792239]
[1739952701809,3.67755,2719.2,2718.9,0.05792239]
[1739952702161,7.35519,2719.2,2718.9,0.05792239]
[1739952702913,7.35522,2719.2,2718.9,0.05792239]
[1739952703093,3.67755,2719.2,2718.9,0.05792239]
[1739952703295,3.67782,2719.0,2718.9,0.05792239]
[1739952703963,0.03697571,2719.1,2718.9,0.05792239]
[1739952704160,4.65492254,2719.2,2718.9,0.05792239]
[1739952704382,3.67776,2719.1,2718.9,0.05792239]
[1739952704719,3.71479571,2719.0,2718.9,0.05792239]
[1739952705110,6.97029397,2719.0,2718.9,0.05792239]
[1739952705263,6.93331826,2719.0,2718.9,0.05792239]
[1739952705681,4.51481282,2719.0,2718.9,0.05792239]
[1739952706423,8.30401826,2719.0,2718.9,0.05792239]
[1739952707572,8.35401826,2719.0,2718.9,0.05792239]
[1739952708314,11.35401826,2719.0,2718.9,0.05792239]
[1739952709663,16.74707011,2719.0,2718.9,2.39e-06]
[1739952709966,17.21243176,2719.0,2718.9,2.39e-06]
[1739952710784,16.74707011,2719.0,2718.9,2.39e-06]
[1739952710980,17.46640916,2719.0,2718.9,2.39e-06]
[1739952712596,14.13631282,2719.0,2718.9,2.39e-06]
[1739952712800,14.40831282,2719.0,2718.9,2.39e-06]
[1739952715474,0.05,2719.0,2718.9,2.39e-06]
[1739952715725,3.76479571,2719.0,2718.9,2.39e-06]
[1739952717401,3.72782,2719.0,2718.9,2.39e-06]
[1739952718702,0.05,2719.0,2718.9,2.39e-06]
[1739952719690,3.67766,2719.2,2718.9,2.39e-06]
[1739952720126,3.71463571,2719.2,2718.9,2.39e-06]
[1739952720322,8.87823,2719.3,2718.9,2.39e-06]
[1739952720727,3.67782,2719.0,2718.9,2.39e-06]
[1739952721233,5.77435428,2719.0,2718.9,2.39e-06]
[1739952721538,8.77435428,2719.0,2718.9,2.39e-06]
[1739952721834,8.73737857,2719.0,2718.9,2.39e-06]
[1739952722194,10.93817857,2719.0,2718.9,2.39e-06]
[1739952723315,14.1304311,2719.0,2718.9,0.05040239]
[1739952723518,13.93817857,2719.0,2718.9,0.05040239]
[1739952727960,13.16787857,2719.0,2718.9,0.05040239]
[1739952728765,12.61787857,2719.0,2718.9,0.05040239]
[1739952728962,11.87862,2719.0,2718.9,0.05040239]
[1739952729168,5.2008,2719.0,2718.9,0.80610239]
[1739952729967,5.2008,2719.5,2719.1,0.7557]
[1739952730769,5.2008,2719.5,2719.1,4.43337]
[1739952731272,5.2008,2719.5,2719.1,0.7557]
[1739952732017,3.67774,2719.1,2718.9,0.82690239]
[1739952732309,0.03697571,2719.2,2718.9,0.82690239]
[1739952732869,3.71460571,2719.2,2718.9,0.82690239]
[1739952733170,3.67779,2719.1,2718.9,0.82690239]
[1739952733793,0.03697571,2719.2,2718.9,0.82690239]
[1739952733995,3.67746,2719.3,2718.9,0.82690239]
[1739952734183,0.55,2719.3,2718.9,0.82690239]
[1739952734390,4.22745,2719.3,2718.9,0.82690239]
[1739952734818,3.71460571,2719.2,2718.9,0.82690239]
[1739952735112,0.03697571,2719.2,2718.9,0.82690239]
[1739952735263,3.67782,2719.0,2718.9,0.82690239]
[1739952735463,3.71479571,2719.0,2718.9,0.05040239]
[1739952735729,0.03697571,2719.0,2718.9,0.05040239]
[1739952736013,7.39247571,2719.1,2718.9,0.05040239]
[1739952736210,7.39246571,2719.1,2718.9,0.05040239]
[1739952736375,3.71467571,2719.1,2718.9,0.05040239]
[1739952736580,7.35497,2719.3,2718.9,0.05040239]
[1739952736777,3.67748,2719.3,2718.9,0.05040239]
[1739952737097,3.67748,2719.3,2719.0,0.8185]
[1739952737409,3.67756,2719.2,2719.0,0.8185]
[1739952737595,6.67728,2719.4,2719.0,0.8185]
[1739952737768,6.71425571,2719.4,2719.0,0.8185]
[1739952738102,3.67763,2719.2,2719.0,0.8185]
[1739952738303,0.03697571,2719.1,2718.9,0.05040239]
[1739952738514,3.71465571,2719.1,2718.9,0.05040239]
[1739952738812,0.03697571,2719.1,2718.9,0.05040239]
[1739952738983,3.67763,2719.2,2718.9,0.05040239]
[1739952739318,3.67772,2719.1,2718.9,0.05040239]
[1739952739478,3.71469571,2719.1,2718.9,0.05040239]
[1739952739679,0.03697571,2719.1,2718.9,0.05040239]
[1739952739862,7.3553,2719.2,2718.9,0.05040239]
[1739952740467,3.67763,2719.2,2718.9,0.05040239]
[1739952740765,0.03697571,2719.1,2718.9,0.05040239]
[1739952740982,3.67782,2719.0,2718.9,0.05040239]
[1739952741402,3.67763,2719.2,2718.9,0.05040239]
[1739952741605,7.39225571,2719.2,2718.9,0.05040239]
[1739952741770,3.71460571,2719.2,2718.9,0.05040239]
[1739952741970,3.67782,2719.0,2718.9,0.05040239]
[1739952742271,3.71479571,2719.0,2718.9,0.05040239]
[1739952743320,3.67782,2719.0,2718.9,0.05040239]
[1739952743675,3.67768,2719.1,2718.9,0.05040239]
[1739952744421,3.71465571,2719.1,2718.9,0.05040239]
[1739952744720,2.41850544,2719.4,2718.9,0.05040239]
[1739952744887,3.67755,2719.2,2718.9,0.05040239]
[1739952745617,3.67782,2719.0,2718.9,0.05040239]
[1739952748631,3.72782,2719.0,2718.9,0.05040239]
[1739952750152,3.67782,2719.0,2718.9,0.05040239]
[1739952752435,12.55626,2719.1,2718.9,0.05040239]
[1739952752824,3.67782,2719.0,2718.9,0.05040239]
[1739952754154,5.2008,2719.1,2719.0,0.7649]
[1739952754862,5.2508,2719.1,2719.0,0.7649]
[1739952755722,5.2008,2719.1,2719.0,0.7649]
[1739952757461,5.2008,2719.1,2719.0,1.21423824]
[1739952757848,3.67735,2719.4,2719.0,1.21423824]
[1739952758463,8.87794,2719.6,2719.1,0.8196]
[1739952758828,12.55507,2719.6,2719.1,0.8196]
[1739952759178,3.67714,2719.5,2719.1,0.8196]
[1739952759371,3.67714,2719.5,2719.1,1.31932506]
[1739952759684,3.67738,2719.4,2719.1,1.31932506]
[1739952759978,3.67738,2719.4,2719.1,0.8196]
[1739952762731,3.67742,2719.3,2719.1,0.8196]
[1739952764676,3.67755,2719.2,2718.9,0.86380239]
[1739952765476,3.67742,2719.3,2718.9,0.86380239]
[1739952765799,3.6777,2719.1,2718.9,0.86380239]
[1739952767874,3.67782,2719.0,2718.9,0.05040239]
[1739952769085,3.67762,2719.2,2718.9,0.05040239]
[1739952770482,3.67782,2719.0,2718.9,0.05040239]
[1739952770978,3.67781,2719.1,2718.9,0.05040239]
[1739952772866,3.67776,2719.1,2718.9,0.05040239]
[1739952773263,7.35552,2719.1,2718.9,0.05040239]
[1739952773500,3.67776,2719.1,2718.9,0.05040239]
[1739952774297,0.7816,2719.3,2718.9,0.05040239]
[1739952774501,3.67755,2719.2,2718.9,0.05040239]
[1739952774797,3.67777,2719.1,2718.9,0.05040239]
[1739952775394,3.67755,2719.2,2718.9,0.05040239]
[1739952775692,3.67782,2719.0,2718.9,0.05040239]
[1739952776096,3.67755,2719.2,2718.9,0.05040239]
[1739952776297,3.67771,2719.1,2718.9,0.05040239]
[1739952776702,3.67777,2719.1,2718.9,0.05040239]
[1739952777998,3.67782,2719.0,2718.9,0.05040239]
[1739952779242,3.67771,2719.1,2718.9,0.05040239]
[1739952780710,3.67782,2719.0,2718.9,0.05040239]
[1739952782116,4.413373,2719.0,2718.9,0.05040239]
[1739952784308,5.766773,2719.0,2718.9,0.05040239]
[1739952786036,8.766773,2719.0,2718.9,0.05040239]
[1739952786649,8.95903163,2719.0,2718.9,0.05040239]
[1739952787729,14.15983163,2719.0,2718.9,0.05040239]
[1739952793566,13.967573,2719.0,2718.9,0.05040239]
[1739952798825,14.1598369,2719.0,2718.9,0.05040239]
[1739952801260,6.64726544,2718.3,2718.2,0.02]
[1739952801570,12.63086544,2718.3,2718.2,0.02]
[1739952801725,14.28871598,2718.3,2718.2,0.02]
[1739952802225,17.28871598,2718.3,2718.2,0.02]
[1739952802837,17.46928938,2718.3,2718.2,0.02]
[1739952805761,17.73828938,2718.3,2718.2,0.02]
[1739952814445,15.95591598,2718.3,2718.2,0.02]
[1739952814653,14.29806544,2718.3,2718.2,0.02]
[1739952814858,14.84806544,2718.3,2718.2,0.02]
[1739952817408,15.67176544,2718.3,2718.2,0.02]
[1739952819269,15.67176544,2718.3,2717.2,0.8041]
[1739952819270,3.67985,2717.5,2717.2,0.8041]
[1739952819589,5.2008,2717.6,2717.2,0.8041]
[1739952819793,3.67993,2717.5,2717.2,0.8041]
[1739952819979,7.35989,2717.5,2717.2,0.8041]
[1739952820316,3.67993,2717.5,2717.2,0.8041]
[1739952820826,8.88054,2717.6,2717.2,0.8041]
[1739952820969,4.22994,2717.5,2717.2,0.8041]
[1739952821174,6.09852544,2717.4,2717.2,0.8041]
[1739952821577,2.41850544,2717.4,2717.2,0.8041]
[1739952821772,7.61930544,2717.4,2717.2,0.8041]
[1739952822140,11.29930544,2717.4,2717.2,0.8041]
[1739952822301,1.18493054,2717.3,2716.7,4.48492]
[1739952822485,1.18493054,2717.3,2716.8,4.49039]
[1739952823286,1.18493054,2717.3,2716.8,0.8096]
[1739952823610,7.61930544,2717.4,2716.9,3.68056]
[1739952823818,7.61930544,2717.4,2716.8,0.8096]
[1739952824113,7.61930544,2717.4,2716.8,4.49026]
[1739952824619,7.61930544,2717.4,2716.9,3.68066]
[1739952824787,9.43988869,2717.4,2716.9,3.68066]
[1739952824994,9.43988869,2717.4,2716.8,0.8096]
[1739952825206,13.11987869,2717.4,2716.8,0.8096]
[1739952825719,13.11987869,2717.4,2716.8,4.49031]
[1739952825929,7.61930544,2717.4,2717.0,0.8087]
[1739952826136,7.61930544,2717.4,2717.1,0.8087]
[1739952826429,7.61930544,2717.4,2717.1,4.48901]
[1739952826613,5.2008,2717.4,2717.1,0.8087]
[1739952829533,5.2008,2717.4,2717.1,4.48904]
[1739952829732,5.2008,2717.4,2717.2,3.68023]
[1739952829951,8.2008,2717.4,2717.3,3.68012]
[1739952830120,5.2008,2717.4,2717.3,4.48472]
[1739952830326,5.2008,2717.4,2717.3,5.301625]
[1739952831141,5.2008,2717.4,2717.3,0.8046]
[1739952833097,5.2008,2717.4,2717.3,4.48472]
[1739952835362,5.2008,2717.4,2717.0,4.47591]
[1739952835563,5.2008,2717.4,2717.3,0.7955]
[1739952835866,5.2008,2717.4,2717.3,4.47562]
[1739952837826,5.2008,2717.4,2717.3,0.7955]
[1739952838231,5.2008,2717.6,2717.3,0.7955]
[1739952838433,8.2008,2717.6,2717.3,0.7955]
[1739952838634,13.31039754,2717.6,2717.3,0.7955]
[1739952838835,13.31039754,2717.6,2717.1,0.8223]
[1739952840272,9.63067754,2717.6,2717.2,3.68018]
[1739952840469,8.2008,2717.6,2717.2,3.68017]
[1739952840631,11.88054,2717.6,2717.1,0.8223]
[1739952841468,1.3819,2717.5,2717.1,0.8223]
[1739952841665,1.3819,2717.5,2716.9,0.7532]
[1739952841666,6.09849544,2717.4,2716.9,0.7532]
[1739952842079,9.77855544,2717.4,2716.9,0.7532]
[1739952842299,6.09849544,2717.4,2716.9,0.7532]
[1739952842593,8.03459498,2717.4,2716.9,0.7532]
[1739952843095,4.35460498,2717.4,2716.9,4.43377]
[1739952843593,4.35460498,2717.4,2717.0,3.68048]
[1739952843888,2.41850544,2717.4,2717.0,3.68048]
[1739952844086,7.61930544,2717.4,2716.9,0.7532]
[1739952844288,7.61930544,2717.4,2716.9,4.43383]
[1739952844797,11.29929544,2717.4,2716.9,4.43385]
[1739952845694,11.29929544,2717.4,2716.9,0.7532]
[1739952845841,1.26811954,2717.3,2716.9,0.7532]
[1739952846461,1.26811954,2717.3,2716.9,4.43383]
[1739952846664,11.29929544,2717.4,2716.9,4.43383]
[1739952847594,7.61930544,2717.4,2716.9,4.43383]
[1739952848092,11.29930544,2717.4,2716.9,4.43383]
[1739952848297,11.29930544,2717.4,2716.9,0.7532]
[1739952849817,11.29930544,2717.4,2716.9,4.43386]
[1739952850412,11.29930544,2717.4,2716.9,0.7532]
[1739952850716,11.29930544,2717.4,2716.9,4.43382]
[1739952850898,12.14140796,2717.4,2716.9,4.43382]
[1739952851387,12.14140796,2717.4,2716.9,4.43385]
[1739952851797,8.46140796,2717.4,2717.0,3.68051]
[1739952852004,5.2008,2717.4,2717.0,3.68051]
[1739952852313,5.2008,2717.4,2717.0,3.68045]
[1739952854515,5.2008,2717.4,2716.9,0.7532]
[1739952854715,5.2008,2717.4,2716.9,4.43383]
[1739952855221,5.2008,2717.4,2717.0,3.6805]
[1739952855424,5.9702009,2717.4,2717.0,3.6805]
[1739952856506,5.2008,2717.4,2717.1,3.68038]
[1739952856972,5.2008,2717.4,2717.0,3.6805]
[1739952857173,5.2008,2717.4,2717.0,7.36094]
[1739952857390,5.2008,2717.4,2717.1,0.1]
[1739952858502,5.2008,2717.4,2717.2,3.68025]
[1739952858724,5.2008,2717.4,2717.2,3.68016]
[1739952858901,5.2008,2717.4,2717.3,0.8243]
[1739952859953,5.2008,2717.4,2717.3,4.50442]
[1739952860654,5.2008,2717.4,2717.3,0.8243]
[1739952860865,5.2008,2717.4,2717.1,0.9283]
[1739952861408,5.2008,2717.4,2717.1,0.1]
[1739952863359,5.72088,2717.4,2717.1,0.1]
[1739952866426,0.7566,2717.3,2717.1,0.1]
[1739952869640,3.68025,2717.2,2717.1,0.1]
[1739952870625,4.8934427,2717.2,2717.1,0.1]
[1739952871282,7.8934427,2717.2,2717.1,0.1]
[1739952871451,9.69854797,2717.2,2717.1,0.1]
[1739952872656,8.48535527,2717.2,2717.1,0.1]
[1739952874961,4.80510527,2717.2,2717.1,0.1]
[1739952876700,8.48535527,2717.2,2717.1,0.1]
[1739952876931,4.80510527,2717.2,2717.1,0.1]
[1739952882535,8.48535527,2717.2,2717.1,0.1]
[1739952883025,4.80510527,2717.2,2717.1,0.1]
[1739952888430,2.35510527,2717.2,2717.1,0.1]
[1739952888750,0.55,2717.2,2717.1,0.1]
[1739952892610,1.76316406,2717.2,2717.1,0.1]
[1739952894314,5.44341406,2717.2,2717.1,0.1]
[1739952894656,1.76316406,2717.2,2717.1,0.1]
[1739952895463,5.44341406,2717.2,2717.1,0.1]
[1739952896115,5.83885396,2717.2,2717.1,0.1]
[1739952898262,9.61305396,2717.2,2717.1,0.1]
[1739952901566,8.83885396,2717.2,2717.1,0.1]
[1739952903518,14.03965396,2717.2,2717.1,0.1]
[1739952906471,14.03965396,2717.2,2717.1,0.9214]
[1739952906472,5.2008,2717.2,2717.1,0.9214]
[1739952906772,5.2008,2717.2,2717.1,4.60179]
[1739952907758,5.2008,2717.2,2717.1,0.9214]
[1739952907942,5.2008,2717.2,2717.1,1.49992797]
[1739952908472,5.2008,2717.2,2717.1,5.18031797]
[1739952909566,1.21316406,2717.4,2717.1,5.18031797]
[1739952909774,6.41396406,2717.6,2717.3,3.68012]
[1739952910094,5.2008,2717.6,2717.4,0.7868]
[1739952910433,6.41396406,2718.0,2717.5,3.67973]
[1739952910649,6.41396406,2718.0,2717.6,0.7868]
[1739952910877,5.2008,2718.0,2717.6,0.7868]
[1739952911036,5.2008,2718.0,2717.7,3.67957]
[1739952911573,5.2008,2718.0,2717.8,0.8015]
[1739952911781,1.21316406,2718.2,2717.8,0.8015]
[1739952911979,4.21316406,2718.2,2717.8,0.8015]
[1739952912332,3.67912,2718.1,2717.8,0.8015]
[1739952912531,2.52836406,2718.0,2717.4,0.8212]
[1739952912738,6.10471649,2717.8,2717.4,0.8212]
[1739952913235,3.68008,2717.4,2717.2,0.8191]
[1739952913436,6.10513649,2717.5,2717.1,0.1]
[1739952913640,3.68012,2717.3,2717.1,0.1]
[1739952914059,0.55,2717.4,2717.1,0.1]
[1739952915233,3.67994,2717.5,2717.1,0.1]
[1739952916035,6.67964,2717.7,2717.2,0.7648]
[1739952917190,3.0,2717.6,2717.2,0.7648]
[1739952917398,6.67975,2717.6,2717.2,0.7648]
[1739952918109,6.005,2717.8,2717.2,0.7648]
[1739952918256,5.2008,2717.8,2717.5,0.779]
[1739952918858,5.2008,2717.8,2717.5,4.45884]
[1739952919298,3.55,2718.0,2717.5,4.45884]
[1739952920399,3.67904,2718.1,2717.5,5.272623]
[1739952920700,3.0,2718.0,2717.5,5.272623]
[1739952921377,3.0,2718.0,2717.5,1.592883]
[1739952921578,3.67955,2717.8,2717.5,0.779]
[1739952921759,3.67968,2717.7,2717.5,0.779]
[1739952921959,3.67955,2717.8,2717.5,0.779]
[1739952922154,3.0,2717.9,2717.5,4.45884]
[1739952922398,4.22892,2718.2,2717.6,4.43321]
[1739952922699,4.22892,2718.2,2717.7,0.7535]
[1739952923059,0.55,2718.0,2717.7,0.7535]
[1739952923263,3.67937,2717.9,2717.7,0.7535]
[1739952923698,0.55,2717.8,2717.2,0.7935]
[1739952924010,7.35933,2717.7,2717.2,0.7935]
[1739952924298,3.67965,2717.7,2717.2,0.7935]
[1739952924496,6.10456649,2717.9,2717.2,4.47364]
[1739952924698,0.55,2717.7,2717.2,4.47364]
[1739952925099,3.67958,2717.7,2717.2,4.47364]
[1739952926903,3.67937,2717.9,2717.3,0.7771]
[1739952927712,3.67937,2717.9,2717.4,3.67996]
[1739952928001,0.55,2718.0,2717.5,4.47835]
[1739952928393,10.35824,2718.1,2717.5,4.47835]
[1739952928789,6.67909,2718.1,2717.5,4.47835]
[1739952928988,3.0,2717.9,2717.5,0.7985]
[1739952929594,3.0,2717.9,2717.5,4.47826]
[1739952929909,6.67918,2718.0,2717.5,5.294082]
[1739952930090,3.0,2718.0,2717.5,5.294082]
[1739952930296,6.67924,2718.0,2717.5,4.47826]
[1739952930928,3.67909,2718.1,2717.6,4.48547]
[1739952931266,4.2288,2718.3,2717.7,3.67954]
[1739952931679,4.2288,2718.3,2717.8,0.8227]
[1739952931872,3.67897,2718.2,2717.8,0.8227]
[1739952933911,3.0,2718.3,2717.9,0.792]
[1739952934594,3.67855,2718.5,2717.9,4.494349]
[1739952934907,3.0,2718.4,2718.0,4.47108]
[1739952935217,6.67838,2718.6,2718.0,4.47107]
[1739952935692,6.67839,2718.6,2718.1,4.47103]
[1739952936096,3.67801,2718.9,2718.3,4.47074]
[1739952936418,3.0,2718.8,2718.3,4.47074]
[1739952937474,3.0,2718.8,2718.3,0.792]
[1739952937800,6.67809,2718.8,2718.3,0.792]
[1739952938002,3.0,2718.8,2718.3,4.47068]
[1739952938209,3.0,2718.8,2718.4,0.814949]
[1739952938509,6.6781,2718.8,2718.4,0.814949]
[1739952939581,3.0,2718.8,2718.4,0.814949]
[1739952940475,6.6781,2718.8,2718.4,0.814949]
[1739952940676,3.67826,2718.7,2718.3,0.792]
[1739952941218,3.0,2718.8,2718.3,4.47075]
[1739952942314,6.67812,2718.8,2718.3,0.792]
[1739952942676,3.0,2718.8,2718.4,3.67861]
[1739952943073,3.0,2718.9,2718.5,0.7761]
[1739952943279,3.0,2718.9,2718.6,4.45442]
[1739952943681,3.0,2718.9,2718.6,0.7761]
[1739952944021,0.05,2719.0,2718.7,3.6782]
[1739952944326,0.05,2719.0,2718.8,0.7891]
[1739952944489,0.05,2719.0,2718.8,4.46718]
[1739952944691,0.05,2719.0,2718.9,3.67795]
[1739952944901,0.05,2719.0,2718.8,5.281708]
[1739952947334,3.0,2719.3,2718.8,5.281708]
[1739952947545,3.0,2719.3,2718.8,4.46717]
[1739952948137,6.67743,2719.3,2718.8,4.46717]
[1739952948341,3.0,2719.3,2718.9,0.7673]
[1739952948735,6.67744,2719.3,2718.9,0.7673]
[1739952949450,3.0,2719.3,2718.9,0.7673]
[1739952949608,3.0,2719.3,2718.9,4.44522]
[1739952949810,3.0,2719.3,2718.9,4.44523]
[1739952950012,0.55,2719.5,2718.9,5.257554]
[1739952950308,4.22716,2719.5,2718.9,5.257554]
[1739952950809,4.22716,2719.5,2719.0,3.67774]
[1739952951147,3.67696,2719.7,2719.1,4.47501]
[1739952951304,3.67696,2719.7,2719.2,0.815274]
[1739952951503,3.0,2719.6,2719.3,0.8113]
[1739952952123,6.67708,2719.6,2719.3,0.8113]
[1739952952335,3.67719,2719.5,2719.3,0.8113]
[1739952952654,3.67719,2719.5,2719.0,3.67773]
[1739952952655,3.67735,2719.4,2718.9,0.7799]
[1739952952815,0.05,2719.3,2718.9,0.7799]
[1739952953215,3.67759,2719.2,2718.9,0.7799]
[1739952953550,3.72743,2719.3,2718.9,0.7799]
[1739952953856,0.05,2719.3,2718.9,0.7799]
[1739952954359,3.7275,2719.3,2718.9,0.7799]
[1739952954708,0.05,2719.3,2718.9,0.7799]
[1739952955311,3.7275,2719.3,2718.9,0.7799]